Cogmind - Beta 16.1 @@@ ROGUE MODE // 2026.03.21 @ 10:42:47 Player: rootmos Result: Destroyed by Y-54 Guardian via exploding Fusion Modulator Performance ------------- Evolutions (3) 1500 Regions Visited (5) 1000 Robots Destroyed (102) 510 Value Destroyed (3546) 3546 Prototype IDs (5) 100 Alien Tech Used (0) 0 Bonus (288) 288 TOTAL SCORE: 6944 Bonus ------- High Alert Combat Kills 151 Follower Combat Kills 137 Cogmind --------- Core Integrity 0/700 Matter 23/300 Energy 125/125 System Corruption 18% Temperature Cool (12) Movement Walking (200) Ox1 Location -7/Factory Parts ------- > --- POWER (2) -------- Light Ion Engine > --- PROPULSION (3) --- Improved Titanium Leg > --- UTILITY (4) ------ Large Storage Unit Advanced Targeting Computer > --- WEAPON (4) ------- (None) > --- INVENTORY (15) --- High-capacity Storage Unit Weight Redist. System Terrain Scanner Peak State ------------ > --- POWER ------------ Heavy Ion Engine Improved Deuterium Engine > --- PROPULSION ------- Armored Treads Armored Treads Advanced Treads > --- UTILITY ---------- Large Storage Unit Weight Redist. System Improved Medium Armor Plating Improved Shield Generator > --- WEAPON ----------- Lightning Gun Plasma Cannon Gauss Cannon Mini Grenade Launcher > --- INVENTORY -------- Nuclear Core Light Nuclear Core VSS Leg VSS Leg VSS Leg Improved Titanium Leg High-capacity Storage Unit Terrain Scanner Advanced Targeting Computer Matter Filter Improved Light Armor Plating System Shield High-powered Field Laser Particle Cannon Heavy Assault Rifle [Rating: 45] Favorites ----------- Power Heavy Ion Engine Engine Heavy Ion Engine Power Core Nuclear Core Propulsion Armored Treads Treads Armored Treads Leg Aluminum Leg Utility Light Armor Plating Device Heat Sink Storage Large Storage Unit Processor Advanced Targeting Computer Hackware System Shield Protection Light Armor Plating Weapon Heavy Assault Rifle Energy Gun Beam Rifle Energy Cannon Plasma Cannon Ballistic Gun Heavy Assault Rifle Ballistic Cannon Flak Cannon Launcher Rocket Launcher Build | -11 -10 -10 -9 -8 -7 ------- Run | Yrd Mat Min Mat Mat Fac Slots Evolved 6 | . . . 2 2 2 Power 1 | . . . . . 1 Propulsion 1 | . . . . 1 . Utility 2 | . . . 1 1 . Weapon 2 | . . . 1 . 1 Parts Attached 91 | . 5 . 29 29 28 Power 10 | . . . 3 3 4 Engine 5 | . . . 2 . 3 Core 5 | . . . 1 3 1 Reactor . | . . . . . . Propulsion 23 | . 2 . 9 5 7 Treads 4 | . . . . 4 . Leg 19 | . 2 . 9 1 7 Wheel . | . . . . . . Hover . | . . . . . . Flight . | . . . . . . Utility 31 | . 2 . 6 15 8 Device 11 | . 1 . 3 5 2 Storage 7 | . . . . 5 2 Processor 1 | . . . . . 1 Hackware 1 | . . . . . 1 Protection 11 | . 1 . 3 5 2 Artifact . | . . . . . . Weapon 27 | . 1 . 11 6 9 Energy Gun 10 | . . . 4 2 4 Energy Cannon 6 | . . . 3 1 2 Ballistic Gun 4 | . . . 3 1 . Ballistic Cannon 3 | . . . . 1 2 Launcher 4 | . 1 . 1 1 1 Special Weapon . | . . . . . . Impact Weapon . | . . . . . . Slashing Weapon . | . . . . . . Piercing Weapon . | . . . . . . Special Melee Weapon . | . . . . . . Unidentified Prototypes 5 | . . . 3 1 1 Parts Lost 35 | . 1 . 3 5 26 Power 6 | . . . 1 . 5 Propulsion 10 | . 1 . . . 9 Utility 10 | . . . 1 4 5 Weapon 9 | . . . 1 1 7 Highest Loss Streak 25 | . 1 . 1 1 25 To Critical Strikes 1 | . . . . . 1 Average Backups 12 | 6 6 8 7 15 15 Power 2 | 1 1 2 2 3 2 Propulsion 4 | 4 2 2 2 6 5 Utility 2 | . . 1 1 2 5 Weapon 2 | 1 2 3 2 3 2 Tool/Special . | . . . . . . Unused Backups 36 | . 10 . 4 13 9 Power 11 | . 1 . 2 7 1 Propulsion 16 | . 5 . . 6 5 Utility 4 | . 2 . . . 2 Weapon 5 | . 2 . 2 . 1 Tool/Special . | . . . . . . Average Slot Usage (%) 96 | . 95 100 97 94 96 Engine 7 | . 14 14 7 . 11 Core 4 | . . . 3 9 2 Treads 14 | . . . . 26 20 Leg 10 | . 27 28 22 . 1 Device 12 | . 5 . 11 15 14 Storage 9 | . 14 14 11 9 7 Protection 7 | . 4 14 9 6 6 Energy Gun 5 | . 8 . 8 6 3 Energy Cannon 6 | . . . 7 8 6 Ballistic Gun 9 | . 14 14 12 10 4 Ballistic Cannon 1 | . . . . . 5 Launcher 4 | . 5 14 3 1 6 Peak Build Rating 45 | 6 7 7 19 32 45 Average Rating 25 | 6 6 7 15 27 40 On Entrance 12 | 6 6 7 7 16 31 Avg Prop Armor Cover (%) 4 | . . . . . 4 Naked Turns . | . . . . . . Heaviest Build 80 | 14 18 18 28 63 80 Greatest Support 68 | 20 20 20 25 68 68 Greatest Overweight (x) 2 | . 1 . 1 1 2 Average Overweight (x) . | . . . . . . Largest Inventory Capacity 20 | 8 8 8 8 20 20 Average Capacity 13 | 8 8 8 8 16 16 Most Carried 20 | 6 8 8 8 20 20 Average Carried 12 | 6 6 8 7 15 15 Final Capacity 20 | 8 8 8 8 20 15 Final Carried 20 | 6 8 8 8 20 3 Class Distribution -------------------- 50% | Tank 18% | Scavenger-Tank 17% | Mutant 10% | Gunner Dominant Class ---------------- Mutant | -10/Materials Mutant | -10/Mines Scavenger-Tank | -9/Materials Tank | -8/Materials Tank | -7/Factory Resources | -11 -10 -10 -9 -8 -7 ----------- Run | Yrd Mat Min Mat Mat Fac Matter Collected 2172 | 200 44 . 683 660 585 Remotely . | . . . . . . Salvage Created 3205 | . 167 . 954 1118 966 Parts 192 | . 15 . 69 70 38 Haulers Intercepted . | . . . . . . Recyclers Shooed 2 | . . . 1 . 1 Parts Field Recycled . | . . . . . . Retrieved Matter . | . . . . . . Parts Self-Destructed . | . . . . . . Prevented . | . . . . . . Parts Restored . | . . . . . . Kills | -11 -10 -10 -9 -8 -7 ------- Run | Yrd Mat Min Mat Mat Fac Combat Hostiles Destroyed 87 | . 7 . 28 30 22 Guns 24 | . 3 . 12 4 5 Cannons 28 | . . . 9 13 6 AOE 35 | . 4 . 7 13 11 Classes Destroyed 11 | . 2 . 2 5 2 Worker 5 | . . . . 2 3 Builder 5 | . . . . 5 . Tunneler 1 | . . . 1 . . Recycler 3 | . . . . 1 2 Operator 1 | . . . . 1 . Swarmer 19 | . 3 . 8 8 . Grunt 46 | . 4 . 14 17 11 Brawler 1 | . . . . . 1 Sentry 15 | . . . 6 4 5 Hunter 3 | . . . . 1 2 Programmer 3 | . . . . . 3 Best Kill Streak 9 | . 5 . 6 9 4 Combat Bots Only 5 | . 5 . 5 5 4 Max Kills in Single Turn 4 | . 2 . 3 4 2 Gunslinging . | . . . . . . Exploded 2 | . 2 . 1 2 2 Melee . | . . . . . . Uniques/NPCs Destroyed . | . . . . . . Combat | -11 -10 -10 -9 -8 -7 -------- Run | Yrd Mat Min Mat Mat Fac Hostile Shots Fired 692 | . 22 2 110 154 404 Missed 215 | . 6 1 25 49 134 Hits 477 | . 16 1 85 105 270 Melee 11 | . . . . . 11 Projectile 466 | . 16 1 85 105 259 AOE 1 | . . . . . 1 Critical Strikes 12 | . . . 2 2 8 Part Disruptions 1 | . . . . . 1 Damage Taken 6236 | . 276 12 1014 1561 3373 Core 942 | . 9 . 159 64 710 Absorbed by Shields 432 | . . . . . 432 Core Remaining (%) 86 | 100 . 96 60 88 . Volleys Fired 174 | . 13 . 46 63 52 Largest 4 | . 2 . 3 3 4 Hottest 220 | . 60 . 156 144 220 Shots Fired 472 | . 27 . 126 176 143 Gun 251 | . 23 . 81 99 48 Cannon 164 | . . . 37 52 75 Launcher 57 | . 4 . 8 25 20 Special . | . . . . . . Kinetic 183 | . 14 . 53 64 52 Thermal 178 | . . . 57 61 60 Explosive 56 | . 4 . 7 25 20 Electromagnetic 55 | . 9 . 9 26 11 Robot Hit Streak 14 | . 9 . 13 9 14 Robot Miss Streak 14 | . 3 . 4 4 14 Penetration Max 1 | . . . . . 1 Secondary Targets 1 | . 1 . . . . Max Gunslinging Chain 1 | . 1 . . . . Shots Hit Robots 277 | . 15 . 74 102 86 Core Hits 190 | . 10 . 43 67 70 Critical Kills . | . . . . . . Critical Parts Destroyed . | . . . . . . Critical Strikes 7 | . . . 1 3 3 Burn 4 | . . . 1 3 . Blast 2 | . . . . . 2 Corrupt 1 | . . . . . 1 Melee Attacks . | . . . . . . Impact . | . . . . . . Slashing . | . . . . . . Piercing . | . . . . . . Sneak Attacks . | . . . . . . Combat Hostiles . | . . . . . . Follow-up Attacks . | . . . . . . Damage Inflicted 8665 | . 501 . 1834 3465 2865 Guns 2487 | . 180 . 720 938 649 Cannons 2204 | . . . 485 732 987 Explosions 3952 | . 318 . 610 1795 1229 Melee . | . . . . . . Ramming 22 | . 3 . 19 . . Kinetic 1697 | . 74 . 412 543 668 Thermal 2434 | . 103 . 736 670 925 Explosive 3712 | . 215 . 541 1795 1161 Electromagnetic 800 | . 106 . 126 457 111 Impact . | . . . . . . Slashing . | . . . . . . Piercing . | . . . . . . Highest Corruption 18 | . 2 2 . . 18 Average Corruption 2 | . 2 2 . . 2 Corruption Purged . | . . . . . . Corruption Blocked . | . . . . . . Effects 17 | . 5 1 . . 11 Message Errors 4 | . 1 . . . 3 Matter Fused 8 | . 3 1 . . 4 Energy Discharges 2 | . . . . . 2 Data Loss (minor) 1 | . . . . . 1 Data Loss (major) 1 | . . . . . 1 Misfires 1 | . 1 . . . . Overload Shots . | . . . . . . Overflow Damage 218 | . 92 . 24 64 38 Projectiles 11 | . . . 7 . 4 Explosions 207 | . 92 . 17 64 34 Melee . | . . . . . . Knockbacks 8 | . . . . . 8 Impact . | . . . . . . Kinetic 6 | . . . . . 6 Secondary 2 | . . . . . 2 Self-Inflicted Damage 489 | . 104 . 75 111 199 Shots 14 | . 2 . 3 4 5 Rammed . | . . . . . . Targets Rammed 2 | . 1 . 1 . . Kicked 2 | . 1 . 1 . . Crushed . | . . . . . . Highest Temperature 654 | . 60 . 386 295 654 Average Temperature 151 | . 31 . 99 76 231 Received Heat Transfer 1704 | . 72 6 366 522 738 Effects 48 | . . . 2 . 46 Shutdowns 13 | . . . . . 13 Energy Bleed 3 | . . . . . 3 Interference 12 | . . . 1 . 11 Matter Decay 4 | . . . . . 4 Short Circuit 2 | . . . 1 . 1 Damage (minor) 3 | . . . . . 3 Damage (major) 9 | . . . . . 9 Damage (core) 2 | . . . . . 2 Siege Activations . | . . . . . . Martial Activations . | . . . . . . Shielding Activations . | . . . . . . Robots Disrupted . | . . . . . . Combat Hostiles . | . . . . . . Robots Corrupted . | . . . . . . Combat Hostiles . | . . . . . . Parts Fried . | . . . . . . Impact Corruptions . | . . . . . . Robots Melted . | . . . . . . Combat Hostiles . | . . . . . . Parts Melted 4 | . . . 2 1 1 Heat Transferred 4748 | . 100 . 1591 1480 1577 Parts Sabotaged . | . . . . . . Parts Stolen . | . . . . . . Parts Stripped . | . . . . . . Power Chain Reactions 1 | . . . 1 . . Alert | -11 -10 -10 -9 -8 -7 ------- Run | Yrd Mat Min Mat Mat Fac Maximum Alert Level 2 | . . . 2 2 2 Low Security (%) 49 | 100 100 100 24 37 63 Level 1 35 | . . . 61 28 36 Level 2 14 | . . . 13 33 . Level 3 . | . . . . . . Level 4 . | . . . . . . Level 5 . | . . . . . . High Security . | . . . . . . Max Security . | . . . . . . Peak Influence 598 | . 170 56 460 598 400 Initial 255 | . . 31 5 187 255 Average 231 | . 56 15 248 320 202 Influence Increases 3144 | . 237 56 952 1011 888 Destroy 0b10 Robot/C 1840 | . 140 40 620 600 440 Destroy 0b10 Robot/NC 75 | . . . 5 45 25 Destroy Leader 430 | . 30 10 150 140 100 Allied During Kill 14 | . . 6 8 . . Successful Hack 25 | . 7 . 14 . 4 Disable Machine 270 | . 15 . 30 75 150 Destroy Structure 385 | . 45 . 35 151 154 Lose Combat Pursuer 105 | . . . 90 . 15 Influence Decreases 2817 | . 157 120 524 893 1123 Entered New Map 624 | . . 49 11 257 307 Time Decay 1805 | . 147 71 445 586 556 Lost Part 350 | . 10 . 30 50 260 Lost Ally 38 | . . . 38 . . Squads Dispatched 15 | . 2 . 3 5 5 Investigation 2 | . . . 1 1 . Extermination 3 | . . . . . 3 Reinforcement 10 | . 2 . 2 4 2 Assault . | . . . . . . Garrison . | . . . . . . Intercept . | . . . . . . Searches Triggered . | . . . . . . Construction Impeded 3 | . . . . 2 1 Haulers Reinforced . | . . . . . . Active Scanning Responses . | . . . . . . Cargo Convoy Interrupts 1 | . . . . . 1 Stealth | -11 -10 -10 -9 -8 -7 --------- Run | Yrd Mat Min Mat Mat Fac Distress Signals 7 | . . . 6 1 . Communications Jammed . | . . . . . . Distress Signals . | . . . . . . Times Spotted 133 | . 12 2 45 41 33 Peak Tracking Total 7 | . 5 2 6 6 7 Tactical Retreats 7 | . . . 4 2 1 ECM-based Alert Blocks 4 | . . . . 4 . Traps | -11 -10 -10 -9 -8 -7 ------- Run | Yrd Mat Min Mat Mat Fac Traps Triggered 3 | . 1 . 1 . 1 Indirectly . | . . . . . . Trap Hack Attempts . | . . . . . . Triggered . | . . . . . . Disarmed . | . . . . . . Reprogrammed . | . . . . . . Reused . | . . . . . . Traps Extracted . | . . . . . . Installed . | . . . . . . Triggered . | . . . . . . Machines | -11 -10 -10 -9 -8 -7 ---------- Run | Yrd Mat Min Mat Mat Fac Machines Disabled 18 | . 1 . 2 5 10 Max in Single Turn 6 | . 1 . 1 1 6 Garrison Access 1 | . . . . . 1 Machines Repaired . | . . . . . . Machines Dismantled . | . . . . . . Machines Sabotaged . | . . . . . . Overloaded Fab Kills . | . . . . . . Hacking | -11 -10 -10 -9 -8 -7 --------- Run | Yrd Mat Min Mat Mat Fac Machines Accessed 7 | . 2 . 1 2 2 Terminals 3 | . 2 . 1 . . Fabricators . | . . . . . . Repair Stations . | . . . . . . Recycling Units 1 | . . . . 1 . Scanalyzers 2 | . . . . 1 1 Garrison Access 1 | . . . . . 1 Total Hacks 20 | . 3 . 1 5 11 Successful 17 | . 2 . 1 5 9 Failed 2 | . 1 . . . 1 Catastrophic . | . . . . . . Database Lockouts 1 | . . . . . 1 Manual . | . . . . . . Terminals 4 | . 3 . 1 . . Fabricators . | . . . . . . Repair Stations . | . . . . . . Recycling Units 2 | . . . . 2 . Scanalyzers 13 | . . . . 3 10 Garrison Access 1 | . . . . . 1 Terminal Hacks 3 | . 2 . 1 . . Record 1 | . . . 1 . . Branch Access Points 1 | . 1 . . . . Locate Traps 1 | . 1 . . . . Fabricator Hacks . | . . . . . . Repair Station Hacks . | . . . . . . Recycling Unit Hacks 2 | . . . . 2 . Report Inventory 1 | . . . . 1 . Retrieve Matter 1 | . . . . 1 . Scanalyzer 11 | . . . . 3 8 Insert Component 2 | . . . . 1 1 Analyze 4 | . . . . 2 2 Retrieve Study 5 | . . . . . 5 Garrison Access Hacks 1 | . . . . . 1 Seal Access 1 | . . . . . 1 Unauthorized Hacks . | . . . . . . Terminals . | . . . . . . Fabricators . | . . . . . . Repair Stations . | . . . . . . Recycling Units . | . . . . . . Scanalyzers . | . . . . . . Garrison Access . | . . . . . . Data Cores Recovered . | . . . . . . Used . | . . . . . . Hacking Detections 1 | . . . . 1 . Full Trace Events 1 | . . . . 1 . Feedback Events . | . . . . . . Feedback Blocked . | . . . . . . Robot Schematics Acquired . | . . . . . . Robots Built . | . . . . . . Authchips . | . . . . . . Time . | . . . . . . Total Robot Build Rating . | . . . . . . Part Schematics Acquired 2 | . . . . 1 1 Parts Built . | . . . . . . Authchips . | . . . . . . Time . | . . . . . . Total Part Build Rating . | . . . . . . Part Studies Acquired 5 | . . . . . 5 Parts Repaired . | . . . . . . Time . | . . . . . . Parts Recycled . | . . . . . . Recycled Matter . | . . . . . . Retrieved Matter 244 | . . . . 244 . Retrieved Components . | . . . . . . Parts Scanalyzed 2 | . . . . 1 1 Part Schematics Acquired 2 | . . . . 1 1 Parts Damaged . | . . . . . . Bothacking | -11 -10 -10 -9 -8 -7 ------------ Run | Yrd Mat Min Mat Mat Fac Used RIF Installer . | . . . . . . Robots Hacked . | . . . . . . Non-combat . | . . . . . . Combat . | . . . . . . Robot Hacks Applied . | . . . . . . Relay Couplers Released . | . . . . . . Fabnet Peak Effective % . | . . . . . . Robots Rewired . | . . . . . . Allies Hacked . | . . . . . . Hacks Repelled . | . . . . . . Allies | -11 -10 -10 -9 -8 -7 -------- Run | Yrd Mat Min Mat Mat Fac Total Allies 2 | . . 2 . . . Largest Group 2 | . . 2 2 . . Highest-Rated Group 45 | . . 45 45 . . Highest-Rated Ally 31 | . . 31 31 . . Total Orders . | . . . . . . Ally Attacks 15 | . . 6 9 . . Total Damage 233 | . . 127 106 . . Kills 5 | . . 2 3 . . Allies Corrupted . | . . . . . . Allies Melted . | . . . . . . Intel | -11 -10 -10 -9 -8 -7 ------- Run | Yrd Mat Min Mat Mat Fac Active Infowar (turns) 1622 | . 201 . 359 944 118 Sensors 158 | . . . . 158 . Terrain 410 | . . . . 292 118 Structural 201 | . 201 . . . . Seismic 359 | . . . 359 . . ECM 494 | . . . . 494 . Robot Analysis Total . | . . . . . . Derelict Logs Recovered . | . . . . . . Drone Launches . | . . . . . . Drone Recoveries . | . . . . . . Exploration | -11 -10 -10 -9 -8 -7 ------------- Run | Yrd Mat Min Mat Mat Fac Turns Passed 5665 | 5 490 253 1466 1825 1626 Spaces Moved 2807 | 5 359 186 679 875 703 Core . | . . . . . . Treads 1516 | . . . . 845 671 Legs 1291 | 5 359 186 679 30 32 Wheels . | . . . . . . Hover . | . . . . . . Flight . | . . . . . . Fastest Speed 110 | 120 120 120 120 120 110 Average Speed 168 | 120 120 120 181 168 193 Slowest Speed 305 | 120 190 120 190 250 305 Overloaded Moves . | . . . . . . Propulsion Burnouts . | . . . . . . Robots Hopped . | . . . . . . Potential Cave-ins . | . . . . . . Cave-ins Triggered . | . . . . . . Exploration Rate (%) 41 | 2 61 61 55 49 18 Regions Visited 5 Branch Regions 1 Pre-discovered Areas . | . . . . . . Known Exits Taken 1 | . 1 . . . . Unknown Exits Taken 4 | 1 . 1 1 1 . Scrap Searched . | . . . . . . Spaces Dug . | . . . . . . Terrain Destroyed 421 | . 57 . 33 169 162 Melee . | . . . . . . Projectile 12 | . . . . 7 5 AOE 409 | . 57 . 33 162 157 Terrain Rammed . | . . . . . . Walls Destroyed . | . . . . . . Machines Disabled . | . . . . . . Actions | -11 -10 -10 -9 -8 -7 --------- Run | Yrd Mat Min Mat Mat Fac Total 3393 | 4 392 216 820 1093 868 Wait 138 | . . 31 24 56 27 Move 2802 | 4 358 185 678 874 703 Hop . | . . . . . . Pick Up 67 | . 8 . 11 32 16 Fast Attach 13 | . 2 . 2 5 4 Attach 23 | . . . 3 5 15 Detach 1 | . . . . 1 . Swap 91 | . 3 . 30 31 27 Drop 82 | . 7 . 25 26 24 Fire 174 | . 13 . 46 63 52 Melee . | . . . . . . Ram . | . . . . . . Kick 2 | . 1 . 1 . . Crush . | . . . . . . Escape Stasis . | . . . . . . Rewire . | . . . . . . Trap . | . . . . . . Miscellaneous . | . . . . . . Route ------- -11/Scrapyard -10/Materials (discovered 3 exits: *Mat / *Min x2) -10/Mines (discovered 2 exits: *Mat x2) -9/Materials -8/Materials -7/Factory History --------- Turn | Location | Event 1 | -11/Scrapyard | Discovered new exit (range 2) 6 | -11/Scrapyard | Entered Materials 64 | -10/Materials | Identified exit to Mines 262 | -10/Materials | Discovered new exit (range 10) 311 | -10/Materials | Build established: Mutant 496 | -10/Materials | Entered Mines 501 | -10/Mines | Met a Derelict bent on vengeance 537 | -10/Mines | Discovered new exit (range 6) 700 | -10/Mines | Discovered new exit (range 15) 749 | -10/Mines | Entered Materials 749 | -9/Materials | Accompanied by 2 allies 749 | -9/Materials | Evolved 2 slots: Utility x1, Weapon x1 754 | -9/Materials | Led the pair of lost Derelicts to an unsafe place 1539 | -9/Materials | Build established: Scavenger-Tank 2107 | -9/Materials | Discovered new exit (range 8) 2215 | -9/Materials | Entered another Materials area 2215 | -8/Materials | Evolved 2 slots: Propulsion x1, Utility x1 2556 | -8/Materials | Build established: Tank 3319 | -8/Materials | Discovered new exit (range 7) 3473 | -8/Materials | Build established: Gunner 4040 | -8/Materials | Entered Factory 4040 | -7/Factory | Evolved 2 slots: Power x1, Weapon x1 4062 | -7/Factory | Build established: Tank 5250 | -7/Factory | Central database locked down 5435 | -7/Factory | Cargo convoy interrupted 5602 | -7/Factory | System corruption reached 10% 5611 | -7/Factory | Core integrity fell below 50% 5657 | -7/Factory | Core integrity fell below 20% 5666 | -7/Factory | Destroyed by Y-54 Guardian via exploding Fusion Modulator Last Messages --------------- 05650_ P-60 Hacker resets P-60 Hacker, system corruption cleaned. 05650_ Penetrated by Slug. 05652_ VSS Leg destroyed. 05652_ K-01 Serf collects debris. 05653_ Slug penetrates Fusion Modulator. 05654_ Acquired Lgt. Ion Engine. 05656_ P-60 Hacker resets P-60 Hacker, system corruption cleaned. 05656_ K-01 Serf collects debris. 05656_ Flak Cannon+ destroyed. 05656_ Slug penetrates Wall. 05657_ K-01 Serf destroyed. 05661_ Slug penetrates Wall. 05662_ Imp. Aluminum Leg destroyed. 05663_ Mni. Grenade Launcher+ destroyed. 05664_ R-06 Scavenger collects Wheel. 05664_ Slug penetrates Wall. 05666_ Fusion Modulator explodes. 05666_ P-60 Hacker heat damages Shock Rifle. Map ----- +----------------------------------------------------+ | ?????????????????????????????????????????????????? | | ?????????????????????????????????????????????????? | | ?????????????????????????????????????????????????? | | ?????????????????????????????????????????????????? | | ?????????????????????????????????????????????????? | | ?????????????????????????????????????????????????? | | ?????????????????????????????????????????????????? | | ?????????????????????????????????????????????????? | | ?????????????????????????????????????????????????? | | ?????????????????????????????????????????????????? | | ?????????????????????????????????????????????????? | | ?????????????????????????????????????????????????? | | ?????????????????????????????????????????????????? | | ?????????????????????????????????????????????????? | | ??????????????????????????????????????#?#????????? | | ?????????????????????????????????????!!!#????????? | | ????????????????????????????????#??? !! ########## | | ???????????????????????????????? #? !! ## | | ???????????????????????????????# #? ## | | ??????????????????############## # ## | | ??????????????????# # # ## """"" | | ??????????????????# ?# """"" | | ?????????????????## r #??# """ | | ?????????????????# """[ = #??# | | ??????????????????# """!% =! ##??# """"" | | ??????????????????# @"""!!p *%= #??# """"" | | ??????????????????# Y =!! p #??# """ | | ??????????????????# [[ *% #??# | | ??????????????????# [! |%= p ##??# | | ??????????????????# =!!# h ###########+# | | ??????????????????# %!# h %" | | ??????????????????# / # i | | ??????????????????############## | | ????????????????????? #?# | | ????????????????????""" """" #?# | | ????????????????????""" """" #?# ###### | | ????????????????????""" """" #?# #?# ! | | ???????????????????"""" """" #?# #?# | | ?????????????????? """" """ ###= #?# " | | ??????????# """" "" " /* #?# " | | ??????????# %###* #?# " | | ????????????????####+#########?#% #?# | | ???????????????????????????????# ########?# " | | ????????????????? ####### #????????# " | | ????????????????? #????????# " | | ????????????????? +????????# | | ????????????????? #????????# | | ?????????????????? #????????# | | ?????????????????? #????????#### | | ??????????????????? ###+#########????????#### | +----------------------------------------------------+ Best States ------------- Heat Dissipation 41 Energy Generation 26 Energy Capacity 470 Matter Stores 300 Matter Capacity 300 Sight Range 16 Robot Scan Range 15 Terrain Scan Range 14 Terrain Scan Density 10 ECM Strength 1 Additional Mass Support 6 Armor Coverage 600 Evasion (%) 55 Targeting Accuracy 8 Recoil Reduction 3 Matter Filtering 30 Defensive Hacking 10 Item Schematics ----------------- Arm. Treads | -8/Materials | Scanalyzed System Shield | -7/Factory | Scanalyzed Robot Schematics ------------------ None Fabricated ------------ Nothing Repaired ---------- Nothing Studied --------- Flak Cannon | -7/Factory | Hacked Gauss Cannon | -7/Factory | Hacked Mni. Grenade Launcher | -7/Factory | Hacked Nuclear Core | -7/Factory | Hacked Lgt. Nuclear Core | -7/Factory | Hacked Alien Tech Used ----------------- None Achievements -------------- None Challenges ------------ None Game ------ Seed RainbowDecoyMediator Manual? 0 Play Time 01:11:52 Cumulative 122.5 hours Start 2026.03.20 @ 16:50:21 End 2026.03.21 @ 10:42:47 Sessions 5 Manual Loads 0 Difficulty Rogue Special Mode None Game No. 68 Rogue 33 Adventurer 0 Explorer 35 Win Type - Total 1 Types 1/0/0/0/0/0/0/0/0/0 Lore% 32 Gallery% 35 Achievement% 28 Wizard Run 0 Options --------- Layout 0 ASCII 1 Keyboard 1 Movement Vi Keybinds 1 Fullscreen 0 Font 20/SmallcapsGlow Map View 50x62 Zoom Use 0% Tactical HUD 1 Map Filters NONE Filters NONE Steam 0 RUN: 34f92133-128b-4445-a68c-1e22ea48e947